[Event "Early-Titled-Tuesday-Blitz-January-16-2024"]
[Site "Chess.com"]
[Date "2024.01.16"]
[Round "11"]
[White "Oleksandr_Bortnyk"]
[Black "wonderfultime"]
[Result "1-0"]
[WhiteElo "3108"]
[BlackElo "3002"]
[TimeControl "180+1"]
[EndTime "10:09:25 PST"]
[Termination "Oleksandr_Bortnyk won by resignation"]

1. e4 {[%clk 0:02:58.2]} 1... e5 {[%clk 0:02:56]} 2. Nf3 {[%clk 0:02:57.4]} 2...
Nc6 {[%clk 0:02:55.9]} 3. Bb5 {[%clk 0:02:57.6]} 3... a6 {[%clk 0:02:56]} 4. Ba4
{[%clk 0:02:57.8]} 4... Bc5 {[%clk 0:02:56.5]} 5. Nc3 {[%clk 0:02:56.8]} 5...
Nge7 {[%clk 0:02:47.2]} 6. Nd5 {[%clk 0:02:52.1]} 6... O-O {[%clk 0:02:40.8]} 7.
c3 {[%clk 0:02:52.2]} 7... d6 {[%clk 0:02:31.6]} 8. d4 {[%clk 0:02:52.2]} 8...
exd4 {[%clk 0:02:29.9]} 9. cxd4 {[%clk 0:02:46]} 9... Nxd5 {[%clk 0:02:13.8]}
10. dxc5 {[%clk 0:02:35.6]} 10... Nf6 {[%clk 0:02:10.1]} 11. Bg5 {[%clk
0:02:12]} 11... h6 {[%clk 0:02:08.7]} 12. Bh4 {[%clk 0:01:57.8]} 12... Re8
{[%clk 0:01:46.4]} 13. O-O {[%clk 0:01:21.5]} 13... Bg4 {[%clk 0:01:37.2]} 14.
cxd6 {[%clk 0:01:16.3]} 14... cxd6 {[%clk 0:01:35.4]} 15. h3 {[%clk 0:01:12.5]}
15... Bxf3 {[%clk 0:01:29.3]} 16. Qxf3 {[%clk 0:01:13.4]} 16... g5 {[%clk
0:01:29.2]} 17. Bg3 {[%clk 0:01:11.4]} 17... Rxe4 {[%clk 0:01:28.4]} 18. Bxc6
{[%clk 0:00:47.1]} 18... bxc6 {[%clk 0:01:27.4]} 19. Rac1 {[%clk 0:00:48]} 19...
Rc8 {[%clk 0:01:10.6]} 20. Qa3 {[%clk 0:00:47.6]} 20... Re6 {[%clk 0:01:02]} 21.
Qxa6 {[%clk 0:00:44.9]} 21... d5 {[%clk 0:01:02.6]} 22. f3 {[%clk 0:00:37.1]}
22... c5 {[%clk 0:01:00.2]} 23. Qd3 {[%clk 0:00:35.6]} 23... d4 {[%clk
0:00:58.9]} 24. b4 {[%clk 0:00:28.6]} 24... Nh5 {[%clk 0:00:48.2]} 25. Bh2
{[%clk 0:00:23.4]} 25... Re3 {[%clk 0:00:36.4]} 26. Qa6 {[%clk 0:00:23.4]} 26...
Re6 {[%clk 0:00:32.6]} 27. Qd3 {[%clk 0:00:17.3]} 27... Qd5 {[%clk 0:00:32.9]}
28. bxc5 {[%clk 0:00:15.5]} 28... Rxc5 {[%clk 0:00:33.8]} 29. Rxc5 {[%clk
0:00:14]} 29... Qxc5 {[%clk 0:00:34.7]} 30. Rd1 {[%clk 0:00:12.5]} 30... Ra6
{[%clk 0:00:18.5]} 31. Qxa6 {[%clk 0:00:10.2]} 31... d3+ {[%clk 0:00:12.5]} 32.
Kh1 {[%clk 0:00:10]} 32... d2 {[%clk 0:00:13]} 33. Qd3 {[%clk 0:00:07.6]} 33...
Ng7 {[%clk 0:00:09.9]} 34. Qxd2 {[%clk 0:00:07]} 34... Ne6 {[%clk 0:00:10.3]}
35. a4 {[%clk 0:00:07]} 35... Qa3 {[%clk 0:00:10]} 36. a5 {[%clk 0:00:07]} 36...
Qa4 {[%clk 0:00:10.3]} 37. Rc1 {[%clk 0:00:06.9]} 37... Kh7 {[%clk 0:00:09.6]}
38. Qc2+ {[%clk 0:00:06.6]} 1-0

[Event "Early-Titled-Tuesday-Blitz-January-16-2024"]
[Site "Chess.com"]
[Date "2024.01.16"]
[Round "11"]
[White "Timerkhanov"]
[Black "adotand"]
[Result "0-1"]
[WhiteElo "2672"]
[BlackElo "2874"]
[TimeControl "180+1"]
[EndTime "10:09:26 PST"]
[Termination "adotand won by resignation"]

1. d4 {[%clk 0:03:00.9]} 1... Nf6 {[%clk 0:02:59.5]} 2. Bg5 {[%clk 0:03:00.9]}
2... c5 {[%clk 0:02:58.8]} 3. d5 {[%clk 0:02:59.2]} 3... Ne4 {[%clk 0:02:59.1]}
4. h4 {[%clk 0:02:58.8]} 4... Qb6 {[%clk 0:02:56.2]} 5. Nd2 {[%clk 0:02:58.6]}
5... h6 {[%clk 0:02:56.7]} 6. Bf4 {[%clk 0:02:57.7]} 6... Nf6 {[%clk 0:02:56.5]}
7. e4 {[%clk 0:02:53.4]} 7... d6 {[%clk 0:02:53.7]} 8. Nc4 {[%clk 0:02:42.3]}
8... Qd8 {[%clk 0:02:53.2]} 9. e5 {[%clk 0:02:42.6]} 9... dxe5 {[%clk
0:02:47.2]} 10. Nxe5 {[%clk 0:02:42.8]} 10... Qxd5 {[%clk 0:02:31.2]} 11. Bb5+
{[%clk 0:02:34.8]} 11... Nbd7 {[%clk 0:02:31.5]} 12. Qe2 {[%clk 0:02:22.2]}
12... Qd4 {[%clk 0:02:22.3]} 13. Nh3 {[%clk 0:02:00.7]} 13... a6 {[%clk
0:02:05.4]} 14. Rd1 {[%clk 0:01:26.1]} 14... Qb4+ {[%clk 0:02:01.8]} 15. c3
{[%clk 0:01:16.9]} 15... Qxb5 {[%clk 0:02:02.2]} 16. Nc4 {[%clk 0:01:17.6]}
16... e6 {[%clk 0:01:55.2]} 17. Bd6 {[%clk 0:01:16]} 17... Be7 {[%clk
0:01:44.1]} 18. Bxe7 {[%clk 0:01:12.1]} 18... Kxe7 {[%clk 0:01:45]} 19. Nf4
{[%clk 0:01:12]} 19... Rd8 {[%clk 0:01:39.8]} 20. g4 {[%clk 0:01:00.1]} 20...
Qc6 {[%clk 0:01:29.1]} 21. f3 {[%clk 0:00:55.5]} 21... Nb6 {[%clk 0:01:15]} 22.
Ne5 {[%clk 0:00:54.8]} 22... Rxd1+ {[%clk 0:01:13.7]} 23. Kxd1 {[%clk
0:00:52.1]} 23... Qd6+ {[%clk 0:01:11.2]} 24. Kc1 {[%clk 0:00:52.3]} 24... Nfd5
{[%clk 0:01:09.1]} 25. Nxd5+ {[%clk 0:00:48.5]} 25... Qxd5 {[%clk 0:01:10]} 26.
Rd1 {[%clk 0:00:46.2]} 26... Qxa2 {[%clk 0:01:09.8]} 27. Qe3 {[%clk 0:00:46.4]}
27... Qa1+ {[%clk 0:01:00.7]} 28. Kc2 {[%clk 0:00:46.2]} 28... Qa4+ {[%clk
0:01:01.4]} 29. Kc1 {[%clk 0:00:44.5]} 29... Qb5 {[%clk 0:00:56.2]} 30. Qf4
{[%clk 0:00:43]} 30... f6 {[%clk 0:00:48.6]} 31. Ng6+ {[%clk 0:00:39.4]} 31...
Kf7 {[%clk 0:00:49.2]} 32. Nh8+ {[%clk 0:00:37.2]} 32... Ke8 {[%clk 0:00:44.5]}
33. Qd6 {[%clk 0:00:24]} 33... Qxb2+ {[%clk 0:00:44.6]} 34. Kxb2 {[%clk
0:00:23]} 34... Nc4+ {[%clk 0:00:45.5]} 35. Kb3 {[%clk 0:00:22]} 35... Nxd6
{[%clk 0:00:46.4]} 36. Rxd6 {[%clk 0:00:21.2]} 36... Bd7 {[%clk 0:00:46.2]} 37.
Ng6 {[%clk 0:00:20.5]} 37... Rc8 {[%clk 0:00:45.7]} 38. Rb6 {[%clk 0:00:20.1]}
38... Bc6 {[%clk 0:00:45.5]} 39. Nf4 {[%clk 0:00:20.7]} 39... Kf7 {[%clk
0:00:45.3]} 40. Kc4 {[%clk 0:00:20.2]} 40... g5 {[%clk 0:00:45.7]} 41. hxg5
{[%clk 0:00:20]} 41... hxg5 {[%clk 0:00:46.6]} 42. Nd3 {[%clk 0:00:20.3]} 42...
Bxf3 {[%clk 0:00:47.1]} 43. Nxc5 {[%clk 0:00:20.2]} 43... Rc7 {[%clk 0:00:43.1]}
44. Kb4 {[%clk 0:00:20.6]} 44... Bxg4 {[%clk 0:00:41.4]} 45. Nxb7 {[%clk
0:00:20.9]} 45... Bf5 {[%clk 0:00:37.8]} 46. Nd6+ {[%clk 0:00:21.2]} 46... Kg6
{[%clk 0:00:38.4]} 47. c4 {[%clk 0:00:20.2]} 47... g4 {[%clk 0:00:38.7]} 48. c5
{[%clk 0:00:20.2]} 48... g3 {[%clk 0:00:38.9]} 49. Kc4 {[%clk 0:00:19.2]} 49...
g2 {[%clk 0:00:38.7]} 50. Rb8 {[%clk 0:00:12.7]} 50... g1=Q {[%clk 0:00:37.8]}
0-1

[Event "Early-Titled-Tuesday-Blitz-January-16-2024"]
[Site "Chess.com"]
[Date "2024.01.16"]
[Round "11"]
[White "Gryffindorac8"]
[Black "margarita_2703"]
[Result "1-0"]
[WhiteElo "2371"]
[BlackElo "2273"]
[TimeControl "180+1"]
[EndTime "10:09:27 PST"]
[Termination "Gryffindorac8 won on time"]

1. d4 {[%clk 0:03:00.9]} 1... d5 {[%clk 0:02:59.6]} 2. c4 {[%clk 0:02:59.3]}
2... e6 {[%clk 0:02:51.1]} 3. Nf3 {[%clk 0:02:59.1]} 3... Nf6 {[%clk 0:02:49.7]}
4. g3 {[%clk 0:02:59.1]} 4... Be7 {[%clk 0:02:49.8]} 5. Bg2 {[%clk 0:02:59]}
5... O-O {[%clk 0:02:50.5]} 6. O-O {[%clk 0:02:59]} 6... dxc4 {[%clk 0:02:50.8]}
7. Qc2 {[%clk 0:02:58.3]} 7... b5 {[%clk 0:02:49.7]} 8. a4 {[%clk 0:02:57.2]}
8... a6 {[%clk 0:02:45.7]} 9. axb5 {[%clk 0:02:50.4]} 9... Bb7 {[%clk
0:02:45.9]} 10. bxa6 {[%clk 0:02:44]} 10... Nxa6 {[%clk 0:02:46.8]} 11. Qxc4
{[%clk 0:02:42.5]} 11... Bd5 {[%clk 0:02:45.4]} 12. Qd3 {[%clk 0:02:24.4]} 12...
c5 {[%clk 0:02:43.4]} 13. Nc3 {[%clk 0:02:12.4]} 13... Nb4 {[%clk 0:02:41.5]}
14. Rxa8 {[%clk 0:02:11.3]} 14... Qxa8 {[%clk 0:02:42.4]} 15. Qd1 {[%clk
0:02:06.9]} 15... cxd4 {[%clk 0:02:12.8]} 16. Qxd4 {[%clk 0:02:01.4]} 16... Bb7
{[%clk 0:01:52]} 17. Bf4 {[%clk 0:01:48.4]} 17... Rd8 {[%clk 0:01:45.4]} 18. Qc4
{[%clk 0:01:42.6]} 18... Rc8 {[%clk 0:01:42.6]} 19. Qb3 {[%clk 0:01:40.8]} 19...
Nbd5 {[%clk 0:01:31.9]} 20. Be5 {[%clk 0:01:34.3]} 20... Nxc3 {[%clk 0:01:17.3]}
21. Bxc3 {[%clk 0:01:26.1]} 21... Bd5 {[%clk 0:01:17.1]} 22. Qc2 {[%clk
0:01:19]} 22... Ne4 {[%clk 0:01:16.2]} 23. Ne1 {[%clk 0:01:08.1]} 23... Nxc3
{[%clk 0:01:13.1]} 24. bxc3 {[%clk 0:01:07.1]} 24... Bxg2 {[%clk 0:01:11.8]} 25.
Nxg2 {[%clk 0:01:08]} 25... Bf6 {[%clk 0:01:12.2]} 26. c4 {[%clk 0:01:05.2]}
26... Qc6 {[%clk 0:00:52.9]} 27. Rc1 {[%clk 0:01:04.1]} 27... Bg5 {[%clk
0:00:50.9]} 28. e3 {[%clk 0:01:02.6]} 28... h6 {[%clk 0:00:49.8]} 29. h4 {[%clk
0:01:00.9]} 29... Bf6 {[%clk 0:00:49.5]} 30. Nf4 {[%clk 0:00:59.2]} 30... Be5
{[%clk 0:00:48.3]} 31. Nd3 {[%clk 0:00:58.1]} 31... Bf6 {[%clk 0:00:20.4]} 32.
c5 {[%clk 0:00:56.9]} 32... Qd5 {[%clk 0:00:19.1]} 33. Qc4 {[%clk 0:00:53.4]}
33... Qc6 {[%clk 0:00:18.3]} 34. Nb4 {[%clk 0:00:52.1]} 34... Qa4 {[%clk
0:00:18.3]} 35. c6 {[%clk 0:00:47.4]} 35... Qa3 {[%clk 0:00:16.9]} 36. Nd3
{[%clk 0:00:40.7]} 36... Qa5 {[%clk 0:00:14.3]} 37. c7 {[%clk 0:00:34.3]} 37...
Be7 {[%clk 0:00:11.2]} 38. Qc6 {[%clk 0:00:32.3]} 38... Qa3 {[%clk 0:00:10.1]}
39. Qd7 {[%clk 0:00:30.1]} 39... Rxc7 {[%clk 0:00:01.8]} 40. Qxc7 {[%clk
0:00:26.7]} 40... Bf6 {[%clk 0:00:01.8]} 41. Nf4 {[%clk 0:00:23]} 1-0

[Event "Early-Titled-Tuesday-Blitz-January-16-2024"]
[Site "Chess.com"]
[Date "2024.01.16"]
[Round "11"]
[White "laiciffOneslraCsungaM"]
[Black "dosto07"]
[Result "1-0"]
[WhiteElo "2404"]
[BlackElo "2523"]
[TimeControl "180+1"]
[EndTime "10:09:32 PST"]
[Termination "laiciffOneslraCsungaM won on time"]

1. d4 {[%clk 0:02:53.5]} 1... d5 {[%clk 0:02:59.6]} 2. Nc3 {[%clk 0:02:49.9]}
2... Nf6 {[%clk 0:02:58.2]} 3. Bf4 {[%clk 0:02:49.8]} 3... c6 {[%clk 0:02:58]}
4. e3 {[%clk 0:02:43.9]} 4... Bf5 {[%clk 0:02:56.6]} 5. f3 {[%clk 0:02:38.1]}
5... e6 {[%clk 0:02:48.5]} 6. g4 {[%clk 0:02:34.3]} 6... Bg6 {[%clk 0:02:48.5]}
7. h4 {[%clk 0:02:34]} 7... h5 {[%clk 0:02:46]} 8. g5 {[%clk 0:02:31]} 8... Nfd7
{[%clk 0:02:46]} 9. Nge2 {[%clk 0:02:23.9]} 9... Nb6 {[%clk 0:02:33.9]} 10. Bh3
{[%clk 0:01:53.9]} 10... Nc4 {[%clk 0:02:24.3]} 11. Qc1 {[%clk 0:01:53.3]} 11...
Na6 {[%clk 0:02:03.5]} 12. Kf2 {[%clk 0:01:44.3]} 12... Nb4 {[%clk 0:01:41.8]}
13. e4 {[%clk 0:01:39.9]} 13... Bd6 {[%clk 0:01:41.5]} 14. a3 {[%clk 0:01:28.8]}
14... Na6 {[%clk 0:01:26.5]} 15. Bxd6 {[%clk 0:01:15.2]} 15... Nxd6 {[%clk
0:01:21.8]} 16. Nf4 {[%clk 0:01:07.6]} 16... dxe4 {[%clk 0:01:20]} 17. Nxg6
{[%clk 0:01:07.6]} 17... fxg6 {[%clk 0:01:16.7]} 18. fxe4 {[%clk 0:01:06.4]}
18... O-O+ {[%clk 0:01:07.1]} 19. Kg2 {[%clk 0:01:06]} 19... Nc7 {[%clk
0:01:03.3]} 20. b3 {[%clk 0:01:01.9]} 20... Ndb5 {[%clk 0:00:58.1]} 21. Nxb5
{[%clk 0:01:00]} 21... cxb5 {[%clk 0:00:58.6]} 22. Qe3 {[%clk 0:00:58.4]} 22...
Qd6 {[%clk 0:00:48.6]} 23. c4 {[%clk 0:00:54.1]} 23... bxc4 {[%clk 0:00:46.9]}
24. bxc4 {[%clk 0:00:55]} 24... Qf4 {[%clk 0:00:44.4]} 25. Rae1 {[%clk 0:00:46]}
25... Kh7 {[%clk 0:00:42.1]} 26. Qxf4 {[%clk 0:00:41.2]} 26... Rxf4 {[%clk
0:00:41.9]} 27. Rhf1 {[%clk 0:00:41.4]} 27... Raf8 {[%clk 0:00:31.1]} 28. Kg3
{[%clk 0:00:39.2]} 28... R4f7 {[%clk 0:00:13.3]} 29. Rxf7 {[%clk 0:00:35.8]}
29... Rxf7 {[%clk 0:00:13.6]} 30. Rf1 {[%clk 0:00:36.7]} 30... Rd7 {[%clk
0:00:13.7]} 31. d5 {[%clk 0:00:36.4]} 31... Rd8 {[%clk 0:00:08.2]} 32. Rf7
{[%clk 0:00:35.1]} 32... Na6 {[%clk 0:00:07.6]} 33. Bxe6 {[%clk 0:00:29.6]}
33... Nc5 {[%clk 0:00:07.6]} 34. Kf4 {[%clk 0:00:23.4]} 34... Nd3+ {[%clk
0:00:06.3]} 35. Ke3 {[%clk 0:00:23.1]} 35... Nc5 {[%clk 0:00:06.5]} 36. Bh3
{[%clk 0:00:20.6]} 36... a5 {[%clk 0:00:06.2]} 37. Rc7 {[%clk 0:00:20.3]} 37...
b6 {[%clk 0:00:05.9]} 38. e5 {[%clk 0:00:20.3]} 38... Rf8 {[%clk 0:00:04.9]} 39.
e6 {[%clk 0:00:18.8]} 39... Re8 {[%clk 0:00:03]} 40. e7 {[%clk 0:00:16.8]} 40...
Kg8 {[%clk 0:00:01.9]} 41. d6 {[%clk 0:00:16.3]} 41... Kf7 {[%clk 0:00:01.6]}
42. Rxc5 {[%clk 0:00:16.1]} 1-0

[Event "Early-Titled-Tuesday-Blitz-January-16-2024"]
[Site "Chess.com"]
[Date "2024.01.16"]
[Round "11"]
[White "Actuary44"]
[Black "CristianS27"]
[Result "0-1"]
[WhiteElo "2492"]
[BlackElo "2611"]
[TimeControl "180+1"]
[EndTime "10:09:39 PST"]
[Termination "CristianS27 won on time"]

1. e4 {[%clk 0:03:00.9]} 1... e5 {[%clk 0:02:02]} 2. Nf3 {[%clk 0:02:58.6]} 2...
d5 {[%clk 0:01:54.7]} 3. exd5 {[%clk 0:02:56.6]} 3... e4 {[%clk 0:01:55.6]} 4.
Ne5 {[%clk 0:02:53.5]} 4... Qxd5 {[%clk 0:01:48.5]} 5. d4 {[%clk 0:02:53.2]}
5... exd3 {[%clk 0:01:47.3]} 6. Nxd3 {[%clk 0:02:53.2]} 6... Nf6 {[%clk
0:01:38.7]} 7. Nc3 {[%clk 0:02:53.4]} 7... Qd8 {[%clk 0:01:36.5]} 8. Be2 {[%clk
0:02:52.9]} 8... Bd6 {[%clk 0:01:34.4]} 9. O-O {[%clk 0:02:52.5]} 9... O-O
{[%clk 0:01:35.3]} 10. Bg5 {[%clk 0:02:47.6]} 10... h6 {[%clk 0:01:34.5]} 11.
Bh4 {[%clk 0:02:38.2]} 11... Nc6 {[%clk 0:01:32.9]} 12. f4 {[%clk 0:02:18.7]}
12... a5 {[%clk 0:01:19.5]} 13. Kh1 {[%clk 0:02:03.3]} 13... Nb4 {[%clk
0:00:58.1]} 14. Nxb4 {[%clk 0:01:35.7]} 14... axb4 {[%clk 0:00:59]} 15. Nd5
{[%clk 0:01:34.3]} 15... Be7 {[%clk 0:00:55]} 16. Nxe7+ {[%clk 0:01:33.9]} 16...
Qxe7 {[%clk 0:00:55.9]} 17. Bf3 {[%clk 0:01:29]} 17... c6 {[%clk 0:00:38.4]} 18.
Qd4 {[%clk 0:01:27.4]} 18... c5 {[%clk 0:00:29]} 19. Bxf6 {[%clk 0:01:23.3]}
19... Qxf6 {[%clk 0:00:29.9]} 20. Qxc5 {[%clk 0:01:21.8]} 20... Qxb2 {[%clk
0:00:18.7]} 21. Rab1 {[%clk 0:01:18.5]} 21... Qxa2 {[%clk 0:00:12.1]} 22. Rxb4
{[%clk 0:01:18.5]} 22... Qe6 {[%clk 0:00:06.1]} 23. h3 {[%clk 0:01:05.2]} 23...
Ra2 {[%clk 0:00:05.4]} 24. Bd5 {[%clk 0:00:54.3]} 24... Qf5 {[%clk 0:00:04.6]}
25. Rc4 {[%clk 0:00:27.3]} 25... Ra8 {[%clk 0:00:03.7]} 26. g4 {[%clk
0:00:25.3]} 26... Qf6 {[%clk 0:00:04.1]} 27. Be4 {[%clk 0:00:20.2]} 27... Bxg4
{[%clk 0:00:01.7]} 28. hxg4 {[%clk 0:00:09.7]} 28... Qh4+ {[%clk 0:00:02]} 29.
Kg2 {[%clk 0:00:09.9]} 29... Qxg4+ {[%clk 0:00:02.3]} 30. Kh2 {[%clk 0:00:09.3]}
30... Qh4+ {[%clk 0:00:02.3]} 31. Kg2 {[%clk 0:00:09.8]} 31... Qg4+ {[%clk
0:00:02.4]} 32. Kh2 {[%clk 0:00:07.5]} 32... Rac8 {[%clk 0:00:01.6]} 33. Qd4
{[%clk 0:00:06.6]} 33... Qe2+ {[%clk 0:00:01.7]} 34. Rf2 {[%clk 0:00:04.6]}
34... Qxc4 {[%clk 0:00:01.6]} 35. Qe3 {[%clk 0:00:04]} 35... Qc3 {[%clk
0:00:01.9]} 36. Qb6 {[%clk 0:00:02.4]} 36... Qf6 {[%clk 0:00:02.3]} 37. f5
{[%clk 0:00:01.5]} 37... Qxb6 {[%clk 0:00:01.9]} 0-1

[Event "Early-Titled-Tuesday-Blitz-January-16-2024"]
[Site "Chess.com"]
[Date "2024.01.16"]
[Round "11"]
[White "Byniolus"]
[Black "RodokininEV"]
[Result "0-1"]
[WhiteElo "2745"]
[BlackElo "2625"]
[TimeControl "180+1"]
[EndTime "10:09:40 PST"]
[Termination "RodokininEV won on time"]

1. d3 {[%clk 0:02:51.7]} 1... d5 {[%clk 0:02:58.2]} 2. c3 {[%clk 0:02:50.6]}
2... c6 {[%clk 0:02:59.1]} 3. e4 {[%clk 0:02:50.1]} 3... e5 {[%clk 0:02:58.6]}
4. Nf3 {[%clk 0:02:47.9]} 4... Nd7 {[%clk 0:02:58]} 5. Nbd2 {[%clk 0:02:46.1]}
5... Ngf6 {[%clk 0:02:58.2]} 6. Be2 {[%clk 0:02:45.1]} 6... Bd6 {[%clk
0:02:57.7]} 7. O-O {[%clk 0:02:45.8]} 7... Nf8 {[%clk 0:02:56.1]} 8. exd5 {[%clk
0:02:40.3]} 8... cxd5 {[%clk 0:02:55.4]} 9. c4 {[%clk 0:02:40.7]} 9... Ng6
{[%clk 0:02:49.9]} 10. cxd5 {[%clk 0:02:20.2]} 10... O-O {[%clk 0:02:49]} 11.
Ne4 {[%clk 0:02:19.6]} 11... Nxd5 {[%clk 0:02:44.8]} 12. d4 {[%clk 0:02:17.4]}
12... exd4 {[%clk 0:02:36]} 13. Nxd6 {[%clk 0:02:14.3]} 13... Qxd6 {[%clk
0:02:33.9]} 14. Qxd4 {[%clk 0:02:13.9]} 14... Be6 {[%clk 0:02:31.7]} 15. g3
{[%clk 0:02:01.1]} 15... Rfd8 {[%clk 0:02:25.7]} 16. Ng5 {[%clk 0:01:54]} 16...
Bf5 {[%clk 0:02:18.6]} 17. Bc4 {[%clk 0:01:28.7]} 17... Rac8 {[%clk 0:02:12.5]}
18. Bb3 {[%clk 0:01:26.2]} 18... h6 {[%clk 0:02:05]} 19. Nf3 {[%clk 0:01:20.5]}
19... b6 {[%clk 0:01:46.7]} 20. Bd2 {[%clk 0:01:12.7]} 20... Nf6 {[%clk
0:01:38.3]} 21. Qxd6 {[%clk 0:00:45.8]} 21... Rxd6 {[%clk 0:01:39.2]} 22. Bb4
{[%clk 0:00:46.3]} 22... Rd3 {[%clk 0:01:27.4]} 23. Ne1 {[%clk 0:00:35.9]} 23...
Rdd8 {[%clk 0:01:26.9]} 24. f3 {[%clk 0:00:27.6]} 24... h5 {[%clk 0:01:24]} 25.
Ng2 {[%clk 0:00:26.9]} 25... Nd5 {[%clk 0:01:09.5]} 26. Bd2 {[%clk 0:00:20.4]}
26... Bc2 {[%clk 0:01:07.3]} 27. Bxd5 {[%clk 0:00:10.3]} 27... Rxd5 {[%clk
0:01:04.3]} 28. Bc3 {[%clk 0:00:11.2]} 28... Bd3 {[%clk 0:00:44.7]} 29. Rfe1
{[%clk 0:00:07]} 29... f6 {[%clk 0:00:43.3]} 30. Rad1 {[%clk 0:00:06.4]} 30...
Rcd8 {[%clk 0:00:39.5]} 31. Ne3 {[%clk 0:00:05.8]} 31... R5d7 {[%clk 0:00:37.6]}
32. Rd2 {[%clk 0:00:06.1]} 32... Kf7 {[%clk 0:00:35.8]} 33. Red1 {[%clk
0:00:06.1]} 33... Bb5 {[%clk 0:00:33.2]} 34. Nd5 {[%clk 0:00:04.8]} 34... Bc6
{[%clk 0:00:29.1]} 35. Nf4 {[%clk 0:00:02.7]} 35... Rxd2 {[%clk 0:00:25.5]} 36.
Rxd2 {[%clk 0:00:03.6]} 36... Rxd2 {[%clk 0:00:25.8]} 37. Bxd2 {[%clk
0:00:04.4]} 37... Ne5 {[%clk 0:00:26.5]} 38. Bc3 {[%clk 0:00:03.7]} 38... Nxf3+
{[%clk 0:00:24.1]} 39. Kg2 {[%clk 0:00:03.3]} 39... g6 {[%clk 0:00:24.7]} 40. h3
{[%clk 0:00:01.9]} 40... Ng5+ {[%clk 0:00:23.2]} 41. Kh2 {[%clk 0:00:02.2]}
41... Ne4 {[%clk 0:00:24.1]} 42. Be1 {[%clk 0:00:01.9]} 42... f5 {[%clk
0:00:17]} 43. Nd3 {[%clk 0:00:02]} 43... Bd5 {[%clk 0:00:13.9]} 44. Ne5+ {[%clk
0:00:01.3]} 44... Kf6 {[%clk 0:00:13]} 0-1

[Event "Early-Titled-Tuesday-Blitz-January-16-2024"]
[Site "Chess.com"]
[Date "2024.01.16"]
[Round "11"]
[White "DeArron_Fox"]
[Black "aistrel"]
[Result "0-1"]
[WhiteElo "2416"]
[BlackElo "2539"]
[TimeControl "180+1"]
[EndTime "10:09:41 PST"]
[Termination "aistrel won by resignation"]

1. d4 {[%clk 0:03:00.9]} 1... d5 {[%clk 0:02:57.4]} 2. c4 {[%clk 0:03:00.1]}
2... e6 {[%clk 0:02:57.5]} 3. Nc3 {[%clk 0:02:59.9]} 3... c6 {[%clk 0:02:57.4]}
4. e3 {[%clk 0:02:59.7]} 4... f5 {[%clk 0:02:57.1]} 5. f4 {[%clk 0:02:57.9]}
5... Nf6 {[%clk 0:02:56.8]} 6. Nf3 {[%clk 0:02:57.6]} 6... Bd6 {[%clk
0:02:51.5]} 7. Be2 {[%clk 0:02:57.1]} 7... O-O {[%clk 0:02:51.8]} 8. O-O {[%clk
0:02:57.8]} 8... Ne4 {[%clk 0:02:52.1]} 9. Ne5 {[%clk 0:02:58.4]} 9... Nd7
{[%clk 0:02:49.3]} 10. Bd2 {[%clk 0:02:58.2]} 10... Ndf6 {[%clk 0:02:47.9]} 11.
Be1 {[%clk 0:02:57.7]} 11... Nxc3 {[%clk 0:02:43.4]} 12. Bxc3 {[%clk 0:02:41.2]}
12... Ne4 {[%clk 0:02:42.4]} 13. a3 {[%clk 0:02:41.8]} 13... g5 {[%clk 0:02:36]}
14. Bb4 {[%clk 0:02:34.6]} 14... g4 {[%clk 0:02:17.5]} 15. Bxd6 {[%clk
0:02:28.8]} 15... Nxd6 {[%clk 0:02:18.4]} 16. h3 {[%clk 0:02:24]} 16... h5
{[%clk 0:02:17.6]} 17. hxg4 {[%clk 0:02:17.6]} 17... fxg4 {[%clk 0:02:16.7]} 18.
Bd3 {[%clk 0:02:12.4]} 18... Kg7 {[%clk 0:01:54.3]} 19. g3 {[%clk 0:01:38.2]}
19... Bd7 {[%clk 0:01:49.6]} 20. Kg2 {[%clk 0:01:31.3]} 20... Be8 {[%clk
0:01:49.5]} 21. Rh1 {[%clk 0:01:28.3]} 21... Qf6 {[%clk 0:01:48.8]} 22. Qc2
{[%clk 0:01:13.6]} 22... Bf7 {[%clk 0:01:18.6]} 23. c5 {[%clk 0:00:47.3]} 23...
Nf5 {[%clk 0:01:11.9]} 24. Bxf5 {[%clk 0:00:45.6]} 24... Qxf5 {[%clk 0:01:12.8]}
25. Qxf5 {[%clk 0:00:43.4]} 25... exf5 {[%clk 0:01:13.7]} 26. Nxf7 {[%clk
0:00:35.8]} 26... Rxf7 {[%clk 0:01:10.4]} 27. Rxh5 {[%clk 0:00:36.2]} 27... Re8
{[%clk 0:01:10.9]} 28. Kf2 {[%clk 0:00:33.5]} 28... Rfe7 {[%clk 0:01:10.9]} 29.
Rah1 {[%clk 0:00:24.3]} 29... Rxe3 {[%clk 0:01:10.1]} 30. Rh7+ {[%clk
0:00:23.8]} 30... Kg8 {[%clk 0:01:10.2]} 31. Rh8+ {[%clk 0:00:23.7]} 31... Kg7
{[%clk 0:01:10.6]} 32. R1h7+ {[%clk 0:00:19]} 32... Kg6 {[%clk 0:01:10.1]} 33.
Rxe8 {[%clk 0:00:17.9]} 33... Rf3+ {[%clk 0:01:10.3]} 34. Kg2 {[%clk 0:00:11.7]}
34... Kxh7 {[%clk 0:01:11.2]} 35. Re7+ {[%clk 0:00:12.1]} 35... Kg6 {[%clk
0:01:11.1]} 36. Rxb7 {[%clk 0:00:13]} 36... Rd3 {[%clk 0:01:10.9]} 37. Rc7
{[%clk 0:00:07.4]} 37... Rd2+ {[%clk 0:01:11.3]} 38. Kf1 {[%clk 0:00:06.8]}
38... Rxb2 {[%clk 0:01:06.6]} 39. Rxc6+ {[%clk 0:00:06.9]} 39... Kf7 {[%clk
0:01:07]} 40. Rd6 {[%clk 0:00:04.7]} 40... Rb3 {[%clk 0:01:05.9]} 41. Rxd5
{[%clk 0:00:04.3]} 41... Rxg3 {[%clk 0:01:05.7]} 42. Rxf5+ {[%clk 0:00:03.9]}
42... Ke6 {[%clk 0:01:04.7]} 43. Re5+ {[%clk 0:00:04.2]} 43... Kd7 {[%clk
0:01:05.4]} 44. f5 {[%clk 0:00:02.8]} 44... Rxa3 {[%clk 0:01:05.7]} 45. Kg2
{[%clk 0:00:02.3]} 45... Rf3 {[%clk 0:01:05.9]} 46. Rd5+ {[%clk 0:00:01.7]}
46... Kc6 {[%clk 0:01:05]} 47. Re5 {[%clk 0:00:02.6]} 47... Kb5 {[%clk
0:01:05.9]} 48. d5 {[%clk 0:00:01.6]} 48... Kxc5 {[%clk 0:01:05.9]} 49. f6
{[%clk 0:00:02]} 49... Rxf6 {[%clk 0:01:04.8]} 50. Kg3 {[%clk 0:00:02.9]} 50...
Rg6 {[%clk 0:01:04.8]} 51. Re7 {[%clk 0:00:02.7]} 51... a6 {[%clk 0:01:04.2]}
52. Ra7 {[%clk 0:00:02.7]} 52... Kxd5 {[%clk 0:01:04.2]} 53. Rd7+ {[%clk
0:00:02.4]} 53... Kc4 {[%clk 0:01:04.3]} 54. Rc7+ {[%clk 0:00:03]} 54... Kb4
{[%clk 0:01:04.4]} 55. Rb7+ {[%clk 0:00:03.6]} 55... Ka4 {[%clk 0:01:02.7]} 56.
Rb1 {[%clk 0:00:03.4]} 56... a5 {[%clk 0:01:02.6]} 57. Rb8 {[%clk 0:00:02.6]}
57... Ka3 {[%clk 0:01:02.6]} 58. Rb1 {[%clk 0:00:03.5]} 58... a4 {[%clk
0:01:03]} 59. Rb8 {[%clk 0:00:04.2]} 59... Ka2 {[%clk 0:01:03.2]} 60. Rb4 {[%clk
0:00:04.9]} 60... a3 {[%clk 0:01:03.3]} 61. Rb8 {[%clk 0:00:05.8]} 61... Ka1
{[%clk 0:01:03]} 62. Rb7 {[%clk 0:00:05.5]} 62... a2 {[%clk 0:01:03.2]} 63. Rb8
{[%clk 0:00:05.4]} 63... Rf6 {[%clk 0:01:03]} 64. Kxg4 {[%clk 0:00:05.2]} 64...
Rf1 {[%clk 0:01:03.1]} 65. Kg3 {[%clk 0:00:03.8]} 65... Rb1 {[%clk 0:01:04]} 66.
Rc8 {[%clk 0:00:02.4]} 66... Rb3+ {[%clk 0:01:03.9]} 67. Kf2 {[%clk 0:00:02.1]}
67... Kb2 {[%clk 0:01:04.8]} 0-1